bitfinex/quotes_BTCUSD_20250205
["timestamp","ask_amount","ask_price","bid_price","bid_amount"]
[1738795341319,0.33150365,96525.0,96524.0,0.00015322]
[1738795341516,0.38430278,96525.0,96524.0,0.00015322]
[1738795342296,0.70940278,96525.0,96524.0,0.00015322]
[1738795342661,0.74240278,96525.0,96524.0,0.00015322]
[1738795342861,0.82143376,96525.0,96524.0,0.00015322]
[1738795343217,0.93053376,96525.0,96524.0,0.00015322]
[1738795343358,0.82143376,96525.0,96524.0,0.00015322]
[1738795344637,0.73240278,96525.0,96524.0,0.00015322]
[1738795344838,0.70940278,96525.0,96524.0,0.00015322]
[1738795344994,0.63040278,96525.0,96524.0,0.00015322]
[1738795345198,0.58480278,96525.0,96524.0,0.00015322]
[1738795345786,0.10970278,96525.0,96524.0,0.00015322]
[1738795346434,0.00719913,96525.0,96524.0,0.00015322]
[1738795346867,0.00904,96553.0,96524.0,0.00015322]
[1738795347096,0.00720372,96525.0,96524.0,0.00015322]
[1738795347297,0.10250365,96552.0,96524.0,0.01462679]
[1738795347636,0.00722842,96551.0,96524.0,0.01462679]
[1738795347849,0.10250365,96550.0,96530.0,0.14435816]
[1738795348179,0.00722652,96549.0,96531.0,0.00103584]
[1738795348388,0.10250365,96548.0,96532.0,0.03200354]
[1738795348703,0.10972922,96548.0,96532.0,0.03200354]
[1738795349337,0.00722557,96548.0,96533.0,0.02028117]
[1738795349674,0.15,96558.0,96533.0,0.01924535]
[1738795349878,0.15,96556.0,96534.0,0.00103572]
[1738795350075,0.15,96554.0,96533.0,0.01924535]
[1738795350413,0.00723031,96553.0,96534.0,0.00103572]
[1738795350599,0.00723031,96553.0,96535.0,0.05272132]
[1738795350804,0.155362,96549.0,96535.0,0.05375705]
[1738795351047,0.15,96551.0,96535.0,0.05272132]
[1738795351184,0.155368,96545.0,96535.0,0.05272132]
[1738795351430,0.155368,96545.0,96536.0,0.02163248]
[1738795351760,0.00722177,96544.0,96534.0,0.01924535]
[1738795351959,0.155377,96540.0,96534.0,0.01924535]
[1738795352123,0.15,96554.0,96534.0,0.01924535]
[1738795352325,0.155382,96536.0,96526.0,0.03079256]
[1738795352493,0.15,96552.0,96527.0,0.01902261]
[1738795352695,0.155389,96532.0,96527.0,0.01902261]
[1738795352892,0.10250365,96531.0,96526.0,0.03079256]
[1738795353120,0.155396,96527.0,96526.0,0.03079256]
[1738795353355,0.25789965,96527.0,96526.0,0.03079256]
[1738795353681,0.26514047,96527.0,96526.0,0.03079256]
[1738795354779,0.47233747,96527.0,96526.0,0.01926565]
[1738795355307,0.72329012,96527.0,96526.0,0.01926565]
[1738795355516,0.72329012,96527.0,96508.0,0.03079256]
[1738795355517,0.01,96511.0,96508.0,0.03079256]
[1738795355722,0.25250365,96509.0,96508.0,0.03094509]
[1738795356046,0.28270309,96509.0,96508.0,0.03094509]
[1738795356224,0.28270309,96509.0,96508.0,0.00015253]
[1738795356225,0.3129734,96509.0,96508.0,0.00015253]
[1738795356382,0.6480734,96509.0,96508.0,0.00015253]
[1738795356963,0.7745734,96509.0,96508.0,0.00015253]
[1738795357371,0.74430309,96509.0,96508.0,0.00015253]
[1738795357588,0.94430309,96509.0,96508.0,0.00015253]
[1738795358484,0.94488916,96509.0,96508.0,0.00015253]
[1738795358693,0.74488916,96509.0,96508.0,0.00015253]
[1738795361011,0.66548916,96509.0,96508.0,0.00015253]
[1738795361237,0.73245268,96509.0,96508.0,0.00015253]
[1738795362259,0.66548916,96509.0,96508.0,0.00015253]
[1738795362576,0.66548916,96509.0,96508.0,0.00037681]
[1738795362799,0.01778551,96509.0,96508.0,0.00037681]
[1738795363007,0.00719944,96509.0,96508.0,0.00037681]
[1738795363430,0.00904,96548.0,96510.0,0.155423]
[1738795363628,0.00904,96548.0,96511.0,0.03744353]
[1738795363629,0.10250365,96545.0,96511.0,0.03744353]
[1738795363856,0.10250365,96545.0,96512.0,0.155421]
[1738795364084,0.00717666,96544.0,96512.0,0.00103602]
[1738795364287,0.10250365,96543.0,96512.0,0.00103602]
[1738795364508,0.10250365,96543.0,96529.0,0.155393]
[1738795364718,0.09087549,96569.0,96530.0,0.23276928]
[1738795364924,0.00719538,96542.0,96530.0,0.38815928]
[1738795365130,0.09087549,96569.0,96530.0,0.38815928]
[1738795365131,0.155362,96549.0,96532.0,0.155388]
[1738795365313,0.155362,96549.0,96533.0,0.15642273]
[1738795365507,0.00721181,96548.0,96534.0,0.03881562]
[1738795365670,0.00721181,96548.0,96534.0,0.03985135]
[1738795365856,0.00721181,96548.0,96535.0,0.00103573]
[1738795366878,0.16257481,96548.0,96534.0,0.03985135]
[1738795367234,0.155364,96547.0,96534.0,0.03881562]
[1738795367441,0.155364,96547.0,96535.0,0.04259391]
[1738795367646,0.00720991,96546.0,96535.0,0.04259391]
[1738795367842,0.00720991,96546.0,96535.0,0.06185877]
[1738795368047,0.155368,96545.0,96535.0,0.06185877]
[1738795368408,0.00721657,96544.0,96535.0,0.06185877]
[1738795368611,0.155371,96543.0,96536.0,0.04878008]
[1738795368859,0.00721657,96544.0,96536.0,0.04878008]
[1738795369067,0.00721467,96542.0,96536.0,0.04878008]
[1738795369288,0.155371,96543.0,96536.0,0.04878008]
[1738795369289,0.15538,96538.0,96536.0,0.04878008]
[1738795369492,0.15538,96538.0,96537.0,0.0492427]
[1738795369824,0.21438072,96541.0,96537.0,0.0492427]
[1738795369825,0.155378,96539.0,96537.0,0.01926486]
[1738795370029,0.25788265,96538.0,96537.0,0.01926486]
[1738795370167,0.40788265,96538.0,96537.0,0.01926486]
[1738795370401,0.49010412,96538.0,96537.0,0.01926486]
[1738795370599,0.49010412,96538.0,96537.0,0.01941739]
[1738795370980,0.49010412,96538.0,96537.0,0.00015253]
[1738795371611,0.51310412,96538.0,96537.0,0.00015253]
[1738795371995,0.53364921,96538.0,96537.0,5.3e-07]
[1738795372203,0.86874921,96538.0,96537.0,5.3e-07]
[1738795372821,0.86874921,96538.0,96508.0,0.00022428]
[1738795372822,0.155425,96509.0,96508.0,0.00022428]
[1738795373026,0.29519315,96509.0,96508.0,0.00037752]
[1738795373224,0.46819315,96509.0,96508.0,0.00037752]
[1738795377910,0.48603487,96509.0,96508.0,0.00037752]
[1738795380691,0.01,96507.0,96483.0,0.0001068]
[1738795380887,0.10250365,96497.0,96484.0,0.00026]
[1738795381131,0.15,96496.0,96484.0,0.00026]
[1738795381344,0.305464,96485.0,96484.0,0.00026]
[1738795381516,0.40796765,96485.0,96484.0,0.00026]
[1738795381862,0.49736662,96485.0,96484.0,0.00026]
[1738795384460,0.5078212,96485.0,96484.0,0.00026]
[1738795386672,0.8329212,96485.0,96484.0,0.00026]
[1738795391422,0.8559212,96485.0,96484.0,0.00026]
[1738795392696,0.9182012,96485.0,96484.0,0.00026]
[1738795392896,0.9182012,96485.0,96483.0,8e-07]
[1738795392897,0.400746,96484.0,96483.0,8e-07]
[1738795393097,0.54055539,96484.0,96483.0,8e-07]
[1738795393296,0.54767559,96484.0,96483.0,8e-07]
[1738795393683,0.74767559,96484.0,96483.0,8e-07]
[1738795395522,0.82547559,96484.0,96483.0,8e-07]
[1738795396103,0.87487559,96484.0,96483.0,8e-07]
[1738795398637,1.19997559,96484.0,96483.0,8e-07]
[1738795398804,1.20412259,96484.0,96483.0,8e-07]
[1738795405078,0.06228,96477.0,96464.0,0.01936373]
[1738795405275,0.32026065,96477.0,96464.0,0.01936373]
[1738795405462,0.500789,96477.0,96464.0,0.01936373]
[1738795405657,0.700789,96477.0,96464.0,0.01936373]
[1738795406589,0.700789,96477.0,96461.0,0.08199704]
[1738795408210,0.700789,96477.0,96463.0,0.01937954]
[1738795408619,0.500789,96477.0,96463.0,0.01937954]
[1738795408814,0.58304197,96477.0,96463.0,0.01937954]
[1738795409427,0.58304197,96477.0,96461.0,0.08199704]
[1738795409760,0.78304197,96477.0,96461.0,0.08199704]
[1738795409964,0.72076197,96477.0,96461.0,0.08199704]
[1738795410510,0.963609,96477.0,96461.0,0.08199704]
[1738795410954,0.790609,96477.0,96461.0,0.08199704]
[1738795411372,0.78832797,96477.0,96461.0,0.08199704]
[1738795411775,0.78832797,96477.0,96456.0,0.28341]
[1738795411776,0.00524732,96477.0,96476.0,0.01949279]
[1738795411976,0.00524732,96477.0,96476.0,0.09899279]
[1738795412173,0.155469,96482.0,96476.0,0.10900638]
[1738795412491,0.00526197,96481.0,96476.0,0.10900638]
[1738795412856,0.00029724,96484.0,96476.0,0.08962029]
[1738795413077,0.00526102,96480.0,96476.0,0.08962029]
[1738795413407,0.155469,96483.0,96476.0,0.0796067]
[1738795413408,0.00526007,96479.0,96476.0,0.0796067]
[1738795413707,0.20758624,96484.0,96476.0,0.0796067]
[1738795413838,0.00525912,96478.0,96476.0,0.0796067]
[1738795414042,0.00525912,96478.0,96477.0,0.02240844]
[1738795414254,0.155471,96481.0,96477.0,0.02240844]
[1738795414503,0.00525912,96478.0,96477.0,0.02240844]
[1738795414703,0.155471,96481.0,96477.0,0.02240844]
[1738795414961,0.00525912,96478.0,96477.0,0.02240844]
[1738795415122,0.155471,96481.0,96477.0,0.02240844]
[1738795415321,0.00525912,96478.0,96477.0,0.02240844]
[1738795415526,0.155471,96481.0,96477.0,0.02240844]
[1738795415761,0.00525912,96478.0,96477.0,0.02240844]
[1738795415950,0.155471,96481.0,96477.0,0.02240844]
[1738795416150,0.00525912,96478.0,96477.0,0.02240844]
[1738795416684,0.155471,96481.0,96477.0,0.02240844]
[1738795417029,0.00526102,96480.0,96477.0,0.02240844]
[1738795417231,0.16073402,96480.0,96477.0,0.02240844]
[1738795417627,0.155475,96479.0,96477.0,0.02240844]
[1738795417831,0.16029393,96479.0,96477.0,0.02240844]
[1738795418309,0.16029293,96479.0,96477.0,0.02240844]
[1738795418649,0.00481893,96479.0,96477.0,0.02240844]
[1738795419068,0.00029724,96484.0,96477.0,0.02240844]
[1738795419268,0.00481798,96478.0,96476.0,0.0796067]
[1738795419510,0.00029724,96484.0,96476.0,0.0796067]
[1738795419805,0.00482273,96483.0,96476.0,0.0796067]
[1738795420233,0.00029724,96484.0,96476.0,0.0796067]
[1738795420772,0.00482273,96483.0,96476.0,0.0796067]
[1738795421283,0.00029724,96484.0,96476.0,0.0796067]
[1738795421486,0.00029724,96484.0,96476.0,0.08064315]
[1738795421685,0.00483866,96483.0,96477.0,0.00103635]
[1738795421848,0.00029724,96484.0,96476.0,0.0796067]
[1738795422084,0.00029724,96484.0,96477.0,0.00103635]
[1738795426716,0.00484701,96483.0,96477.0,0.00103635]
[1738795426919,0.00484701,96483.0,96478.0,0.0380499]
[1738795427847,0.00029724,96484.0,96478.0,0.03908626]
[1738795428074,0.00029724,96484.0,96478.0,0.0380499]
[1738795428310,0.00484701,96483.0,96478.0,0.0380499]
[1738795429674,0.00029724,96484.0,96478.0,0.0380499]
[1738795429864,0.15576424,96484.0,96479.0,0.0418548]
[1738795430064,0.00484675,96483.0,96479.0,0.0418548]
[1738795430312,0.155472,96480.0,96479.0,0.0418548]
[1738795430742,0.155477,96477.0,96476.0,0.0001067]
[1738795431173,0.16031593,96477.0,96476.0,0.0001067]
[1738795431772,0.41281958,96477.0,96476.0,0.0001067]
[1738795432891,0.73791958,96477.0,96476.0,0.0001067]
[1738795433047,0.91872323,96477.0,96476.0,0.0001067]
[1738795433677,1.11872323,96477.0,96476.0,0.0001067]
[1738795434083,1.20400323,96477.0,96476.0,0.0001067]
[1738795434254,1.21304323,96477.0,96476.0,0.0001067]
[1738795435584,0.305519,96451.0,96450.0,0.04231714]
[1738795435782,0.40802265,96451.0,96450.0,0.04231714]
[1738795436105,0.155527,96446.0,96440.0,0.22641087]
[1738795436335,0.155527,96446.0,96440.0,0.14441383]
[1738795436466,0.16033008,96446.0,96440.0,0.14441383]
[1738795436899,0.16033008,96446.0,96445.0,0.09286121]
[1738795437492,0.16033008,96446.0,96445.0,0.00046782]
[1738795440308,0.00480308,96446.0,96445.0,0.00046782]
[1738795440513,0.16033008,96446.0,96445.0,0.00046782]
[1738795440715,0.155527,96446.0,96445.0,0.00046782]
[1738795440940,0.16033008,96446.0,96445.0,0.00046782]
[1738795441154,0.32140173,96446.0,96445.0,0.00046782]
[1738795442425,0.47140173,96446.0,96445.0,0.00046782]
[1738795444825,0.41283373,96446.0,96445.0,0.00046782]
[1738795448015,0.41283373,96446.0,96445.0,0.00057462]
[1738795449713,0.47504373,96446.0,96445.0,0.00057462]
[1738795451991,0.41283373,96446.0,96445.0,0.00057462]
[1738795455373,0.26283373,96446.0,96445.0,0.00057462]
[1738795455575,0.00480308,96446.0,96445.0,0.00057462]
[1738795455960,0.0106259,96451.0,96445.0,0.00057462]
[1738795456156,0.00473852,96446.0,96445.0,0.00057462]
[1738795456380,0.004147,96463.0,96445.0,0.00057462]
[1738795456621,0.00473852,96446.0,96445.0,0.00057462]
[1738795457225,0.10250365,96462.0,96445.0,0.00057462]
[1738795457424,0.00473852,96446.0,96445.0,0.00057462]
[1738795457652,0.15,96461.0,96445.0,0.01511832]
[1738795457828,0.15,96459.0,96445.0,0.00057462]
[1738795457988,0.01058334,96462.0,96445.0,0.00057462]
[1738795457989,0.15,96457.0,96445.0,0.00057462]
[1738795458194,0.15,96455.0,96445.0,0.00057462]
[1738795458562,0.10724978,96454.0,96445.0,0.00057462]
[1738795459186,0.0002245,96450.0,96445.0,0.00057462]
[1738795459609,0.00474138,96449.0,96445.0,0.00057462]
[1738795460578,0.10250365,96448.0,96445.0,0.00057462]
[1738795461137,0.00473947,96447.0,96445.0,0.00057462]
[1738795461878,0.0002245,96450.0,96445.0,0.00057462]
[1738795462121,0.00473852,96446.0,96445.0,0.00057462]
[1738795462349,0.0002245,96450.0,96445.0,0.00057462]
[1738795462546,0.00473852,96446.0,96445.0,0.00057462]
[1738795463146,0.0002245,96450.0,96445.0,0.00057462]
[1738795463347,0.00473852,96446.0,96445.0,0.00057462]
[1738795463550,0.25250365,96446.0,96445.0,0.00057462]
[1738795463749,0.25724217,96446.0,96445.0,0.00057462]
[1738795464293,0.28298884,96446.0,96445.0,0.00057462]
[1738795468256,0.25724217,96446.0,96445.0,0.00057462]
[1738795468456,0.2676595,96446.0,96445.0,0.00057462]
[1738795470895,0.00473852,96446.0,96445.0,0.00057462]
[1738795471282,0.0002245,96450.0,96446.0,0.0811]
[1738795471591,0.0002245,96450.0,96447.0,0.01286114]
[1738795472858,0.0002245,96450.0,96448.0,0.00103678]
[1738795474514,0.0002245,96450.0,96449.0,0.155522]
[1738795474711,0.0002245,96450.0,96449.0,0.00103667]
[1738795474928,0.0002245,96450.0,96449.0,0.15655867]
[1738795475275,0.0002245,96450.0,96449.0,0.06762011]
[1738795476060,0.0002245,96450.0,96449.0,0.22314211]
[1738795476275,0.0002245,96450.0,96449.0,0.22210544]
[1738795478203,0.01073871,96474.0,96449.0,0.22210544]
[1738795478204,0.00496321,96474.0,96449.0,0.22210544]
[1738795478403,0.10250365,96473.0,96450.0,0.14545048]
[1738795478610,0.15,96472.0,96447.0,0.01286114]
[1738795478845,0.15,96470.0,96447.0,0.01389781]
[1738795478996,0.15,96468.0,96447.0,0.01389781]
[1738795479203,0.15,96466.0,96447.0,0.01389781]
[1738795479409,0.25250365,96466.0,96447.0,0.01389781]
[1738795479619,0.25250365,96466.0,96450.0,0.14441383]
[1738795479939,0.25250365,96466.0,96451.0,0.00103667]
[1738795480130,0.10250365,96466.0,96451.0,0.00103667]
[1738795480768,0.10250365,96466.0,96450.0,0.14441383]
[1738795482849,0.10272815,96466.0,96450.0,0.14441383]
[1738795483055,0.0002245,96466.0,96451.0,0.03418885]
[1738795483252,0.0002245,96466.0,96453.0,0.207354]
[1738795483462,0.0002245,96466.0,96454.0,0.00103657]
[1738795483665,0.0002245,96466.0,96455.0,0.00103657]
[1738795484659,0.0002245,96466.0,96456.0,0.00103657]
[1738795484840,0.0002245,96466.0,96457.0,0.05414756]
[1738795485170,0.0002245,96466.0,96458.0,0.00103657]
[1738795485380,0.15,96464.0,96447.0,0.0001069]
[1738795485569,0.10250365,96463.0,96447.0,0.0001069]
[1738795485706,0.155518,96452.0,96447.0,0.0001069]
[1738795485911,0.207353,96454.0,96447.0,0.01472011]
[1738795486109,0.155518,96452.0,96447.0,0.01472011]
[1738795486312,0.155519,96451.0,96447.0,0.01472011]
[1738795486610,0.155512,96455.0,96447.0,0.01472011]
[1738795486842,0.0776,96452.0,96447.0,0.01472011]
[1738795486991,0.0776,96452.0,96435.0,0.207392]
[1738795487193,0.0776,96452.0,95412.0,0.005]
[1738795487601,0.01,96504.0,95412.0,0.005]
[1738795487602,0.01,96381.0,96350.0,0.0001069]
[1738795487800,0.15568,96351.0,96350.0,0.0001069]
[1738795487962,0.16568,96351.0,96350.0,0.00020536]
[1738795488158,0.26818365,96351.0,96350.0,0.00020536]
[1738795491988,0.26812358,96351.0,96350.0,0.00020536]
[1738795493543,0.41812358,96351.0,96350.0,0.00020536]
[1738795497027,0.41812358,96351.0,96323.0,0.07962596]
[1738795497028,0.01,96349.0,96323.0,0.00022596]
[1738795497366,0.26354044,96349.0,96348.0,0.00046673]
[1738795497614,0.27250365,96349.0,96348.0,0.00046673]
[1738795497792,0.62818765,96349.0,96348.0,0.00046673]
[1738795498023,0.7829013,96349.0,96348.0,0.00046673]
[1738795498224,0.7929013,96349.0,96348.0,0.00046673]
[1738795498616,0.7829013,96349.0,96348.0,0.00046673]
[1738795498857,0.7929013,96349.0,96348.0,0.00046673]
[1738795499033,0.01,96344.0,96323.0,0.00022596]
[1738795499240,0.18471365,96339.0,96323.0,0.00022596]
[1738795499441,0.32471365,96324.0,96323.0,0.00022596]
[1738795499815,0.52471365,96324.0,96323.0,0.00022596]
[1738795499981,0.57818502,96324.0,96323.0,0.00022596]
[1738795500188,0.51597502,96324.0,96323.0,0.00022596]
[1738795500398,0.72918502,96324.0,96323.0,0.00022596]
[1738795500830,0.89490902,96324.0,96323.0,9.6e-07]
[1738795501052,0.91526056,96324.0,96323.0,9.6e-07]
[1738795501242,0.92430056,96324.0,96323.0,9.6e-07]
[1738795502117,0.92430056,96324.0,96300.0,4e-05]
[1738795502118,0.06221,96309.0,96300.0,4e-05]
[1738795502325,0.25250365,96301.0,96300.0,4e-05]
[1738795503311,0.25297107,96301.0,96300.0,4e-05]
[1738795505000,0.26323238,96301.0,96300.0,4e-05]
[1738795506133,0.30955562,96301.0,96300.0,4e-05]
[1738795506331,0.15,96300.0,96282.0,4.044e-05]
[1738795506549,0.15,96286.0,96282.0,4.044e-05]
[1738795506739,0.10250365,96284.0,96282.0,4.044e-05]
[1738795506942,0.12889448,96284.0,96282.0,4.044e-05]
[1738795507113,0.10354044,96284.0,96282.0,4.044e-05]
[1738795507443,0.15024204,96284.0,96282.0,4.044e-05]
[1738795507663,0.15024204,96284.0,96256.0,0.000104]
[1738795507844,0.15024204,96284.0,96251.0,0.0203928]
[1738795507845,0.10250365,96276.0,96251.0,0.01380722]
[1738795508022,0.00103679,96275.0,96251.0,0.01380722]
[1738795508226,0.10250365,96267.0,96251.0,0.01380722]
[1738795508427,0.00103679,96266.0,96251.0,0.01380722]
[1738795508653,0.15,96264.0,96251.0,0.01380722]
[1738795508863,0.10250365,96265.0,96251.0,0.01380722]
[1738795508864,0.15,96262.0,96252.0,0.01]
[1738795509051,0.15,96260.0,96252.0,0.01]
[1738795509234,0.15,96258.0,96252.0,0.01]
[1738795509395,0.15,96256.0,96252.0,0.01]
[1738795509591,0.10250365,96255.0,96252.0,0.01]
[1738795510213,0.10250365,96255.0,96254.0,0.01]
[1738795512671,0.00046713,96258.0,96257.0,0.01]
[1738795512927,0.2,96285.0,96257.0,0.01]
[1738795512928,0.2,96285.0,96273.0,0.155805]
[1738795513144,0.2,96285.0,96284.0,0.01]
[1738795513608,0.2,96285.0,96284.0,0.188789]
[1738795513810,0.08303019,96300.0,96299.0,0.01]
[1738795514356,0.08303019,96323.0,96290.0,0.14441383]
[1738795514357,0.08303019,96323.0,96311.0,0.01]
[1738795514547,0.08303019,96323.0,96312.0,0.01]
[1738795514752,0.00103679,96334.0,96321.0,0.01]
[1738795514962,0.10250365,96333.0,96322.0,0.01]
[1738795515734,0.09087549,96345.0,96343.0,0.01]
[1738795515936,0.09087549,96345.0,96305.0,0.023]
[1738795515937,0.24656649,96345.0,96344.0,0.01]
[1738795516116,0.09087549,96345.0,96344.0,0.01]
[1738795517068,0.09087549,96345.0,96344.0,0.01015316]
[1738795517835,0.155678,96353.0,96352.0,0.01]
[1738795519576,0.155675,96355.0,96354.0,0.01]
[1738795520614,0.155671,96357.0,96356.0,0.01]
[1738795521312,0.155669,96359.0,96356.0,0.01]
[1738795521526,0.155671,96357.0,96356.0,0.01]
[1738795521741,0.15,96362.0,96356.0,0.03270966]
[1738795521939,0.15,96360.0,96356.0,0.03270966]
[1738795523656,0.15,96360.0,96356.0,0.02270966]
[1738795523864,0.207543,96366.0,96365.0,0.01]
[1738795524056,0.00836356,96373.0,96349.0,0.21709664]
[1738795524057,0.207533,96371.0,96370.0,0.01]
[1738795524267,0.407501,96385.0,96371.0,0.01]
[1738795524508,0.15564,96376.0,96375.0,0.01]
[1738795524706,0.15,96382.0,96375.0,0.01]
[1738795524926,0.155637,96378.0,96375.0,0.01]
[1738795525113,0.207509,96381.0,96361.0,0.00103761]
[1738795525114,0.207509,96381.0,96380.0,0.01]
[1738795525324,0.155629,96383.0,96382.0,0.01]
[1738795525720,0.15609671,96383.0,96382.0,0.01]
[1738795530363,0.00046771,96383.0,96382.0,0.01]
[1738795530869,0.00046771,96383.0,96382.0,0.033]
[1738795531232,0.00046771,96383.0,96382.0,0.0570521]
[1738795531574,0.00069262,96383.0,96382.0,0.0570521]
[1738795531952,0.00069262,96383.0,96382.0,0.033]
[1738795532153,0.00069262,96383.0,96382.0,0.03403734]
[1738795532333,0.00069262,96383.0,96382.0,0.29217099]
[1738795532528,0.00069262,96383.0,96382.0,0.29113365]
[1738795533402,0.15,96425.0,96405.0,0.01]
[1738795533706,0.15,96423.0,96405.0,0.01015316]
[1738795533839,0.155579,96414.0,96413.0,0.01]
[1738795534028,0.155591,96406.0,96405.0,0.01015316]
[1738795539164,0.25809465,96406.0,96405.0,0.00015316]
[1738795539549,0.25809465,96406.0,96405.0,0.01015316]
[1738795539747,0.25809465,96406.0,96405.0,0.00015316]
[1738795539985,0.60119431,96406.0,96405.0,0.00015316]
[1738795540764,0.80949095,96406.0,96405.0,0.00015316]
[1738795541833,0.74219129,96406.0,96405.0,0.00015316]
[1738795543057,0.7424162,96406.0,96405.0,0.00015316]
[1738795544304,0.7424162,96406.0,96361.0,0.08303019]
[1738795544305,0.06221,96404.0,96361.0,0.08303019]
[1738795544501,0.06221,96404.0,96371.0,0.08303019]
[1738795544502,0.15,96379.0,96371.0,0.08303019]
[1738795544664,0.15,96377.0,96371.0,0.08303019]
[1738795544866,0.10250365,96376.0,96363.0,0.01]
[1738795545061,0.10250365,96376.0,96361.0,0.0834979]
[1738795545261,0.15,96373.0,96361.0,0.00046771]
[1738795545486,0.1267,96374.0,96361.0,0.00046771]
[1738795545647,0.305663,96362.0,96361.0,0.00046771]
[1738795545853,0.40816665,96362.0,96361.0,0.00046771]
[1738795546766,0.60816665,96362.0,96361.0,0.00046771]
[1738795549920,0.61639348,96362.0,96361.0,0.00046771]
[1738795552753,0.15,96361.0,96329.0,0.08303019]
[1738795552891,0.15,96346.0,96329.0,0.08303019]
[1738795553102,0.15,96344.0,96329.0,0.08303019]
[1738795553311,0.15,96342.0,96329.0,0.08303019]
[1738795553491,0.15,96340.0,96311.0,0.00103812]
[1738795553711,0.15,96338.0,96310.0,0.14454156]
[1738795553913,0.15,96336.0,96319.0,0.00830302]
[1738795554148,0.10250365,96335.0,96310.0,0.14454156]
[1738795554346,0.10250365,96335.0,96319.0,0.01]
[1738795554549,0.10250365,96335.0,96310.0,0.14454156]
[1738795554754,0.10250365,96335.0,96320.0,0.01]
[1738795554904,0.10250365,96335.0,96333.0,0.01]
[1738795555139,0.00858322,96340.0,96333.0,0.01]
[1738795555336,0.2,96350.0,96339.0,0.01]
[1738795555557,0.10250365,96349.0,96339.0,0.01]
[1738795555756,0.00904,96372.0,96330.0,0.14454156]
[1738795555757,0.2,96370.0,96344.0,0.01]
[1738795555960,0.2,96370.0,96357.0,0.01]
[1738795556206,0.2,96370.0,96361.0,0.01]
[1738795556542,0.155657,96366.0,96361.0,0.01]
[1738795556854,0.207523,96375.0,96361.0,0.01]
[1738795557054,0.20773091,96383.0,96361.0,0.01103761]
[1738795557240,0.207517,96378.0,96361.0,0.01103761]
[1738795557783,0.00022491,96383.0,96361.0,0.01103761]
[1738795558098,0.207513,96380.0,96361.0,0.01103761]
[1738795558246,0.155644,96374.0,96361.0,0.01103761]
[1738795558461,0.00022491,96383.0,96361.0,0.01]
[1738795558666,0.00022491,96383.0,96361.0,0.0340375]
[1738795558882,0.00022491,96383.0,96361.0,0.1897015]
[1738795559079,0.00022491,96383.0,96361.0,0.07376385]
[1738795559520,0.155641,96376.0,96361.0,0.07376385]
[1738795560131,0.155653,96368.0,96361.0,0.04972635]
[1738795560454,0.207525,96374.0,96361.0,0.01]
[1738795560668,0.155648,96371.0,96361.0,0.01]
[1738795560840,0.155658,96365.0,96361.0,0.01]
[1738795561255,0.155656,96367.0,96361.0,0.01]
[1738795562475,0.207534,96370.0,96361.0,0.01]
[1738795562876,0.155655,96367.0,96361.0,0.01]
[1738795563079,0.155659,96365.0,96361.0,0.01]
[1738795563278,0.207541,96367.0,96361.0,0.01]
[1738795563665,0.155659,96364.0,96361.0,0.01]
[1738795563844,0.207537,96368.0,96361.0,0.01]
[1738795564049,0.207534,96370.0,96361.0,0.01]
[1738795564246,0.155658,96365.0,96361.0,0.01]
[1738795564458,0.15613081,96362.0,96361.0,0.01]
[1738795564768,0.00046781,96362.0,96361.0,0.01]
[1738795565872,0.00046781,96362.0,96361.0,0.165664]
[1738795566043,0.00046781,96362.0,96361.0,0.01]
[1738795566246,0.00046781,96362.0,96361.0,0.24788463]
[1738795566400,0.00046781,96362.0,96361.0,0.05818306]
[1738795566608,0.00046781,96362.0,96361.0,0.01]
[1738795566814,0.00046781,96362.0,96361.0,0.0101069]
[1738795572230,0.15613081,96362.0,96361.0,0.0101069]
[1738795574384,0.00046781,96362.0,96361.0,0.0001069]
[1738795574593,0.15613081,96362.0,96361.0,0.0101069]
[1738795578174,0.00046781,96362.0,96361.0,0.0101069]
[1738795579561,0.00046781,96362.0,96361.0,0.02678876]
[1738795579738,0.00069231,96362.0,96361.0,0.0101069]
[1738795582217,0.15635531,96362.0,96361.0,0.0001069]
[1738795582336,0.15635531,96362.0,96361.0,0.0101069]
[1738795582767,0.00069231,96362.0,96361.0,0.0101069]
[1738795582975,0.15635531,96362.0,96361.0,0.0101069]
[1738795583173,0.00069231,96362.0,96361.0,0.0101069]
[1738795583378,0.15635531,96362.0,96361.0,0.0101069]
[1738795583999,0.00069231,96362.0,96361.0,0.0101069]
[1738795592141,0.00069231,96362.0,96361.0,0.0001069]
[1738795592456,0.00069231,96362.0,96361.0,0.0101069]
[1738795593052,0.15635531,96362.0,96361.0,0.0101069]
[1738795593243,0.00069231,96362.0,96361.0,0.0101069]
[1738795593632,0.15635531,96362.0,96361.0,0.0101069]
[1738795594640,0.00069231,96362.0,96361.0,0.0101069]
[1738795594860,0.15635531,96362.0,96361.0,0.0101069]
[1738795595519,0.15635531,96362.0,96361.0,0.0424798]
[1738795596844,0.15635531,96362.0,96361.0,0.0101069]
[1738795597281,0.00069231,96362.0,96361.0,0.0101069]
[1738795597508,0.15635531,96362.0,96361.0,0.0101069]
[1738795598270,0.15635531,96362.0,96361.0,0.04248573]
[1738795601832,0.15635531,96362.0,96361.0,0.03248573]
[1738795602031,0.15635531,96362.0,96361.0,0.04248573]
[1738795602196,0.15635531,96362.0,96361.0,0.0101069]
[1738795603111,0.15635531,96362.0,96361.0,0.0424971]
[1738795604896,0.15635531,96362.0,96361.0,0.0101069]
[1738795606109,0.15635531,96362.0,96361.0,0.04250271]
[1738795606328,0.00069231,96362.0,96361.0,0.04250271]
[1738795606487,0.15635531,96362.0,96361.0,0.04250271]
[1738795606682,0.00069231,96362.0,96361.0,0.04250271]
[1738795608032,0.00069231,96362.0,96361.0,0.03250271]
[1738795608234,0.00069231,96362.0,96361.0,0.04250271]
[1738795613835,0.15635531,96362.0,96361.0,0.04250271]
[1738795617099,0.15635531,96362.0,96361.0,0.03250271]
[1738795617673,0.15635531,96362.0,96361.0,0.0001069]
[1738795618024,0.15635531,96362.0,96361.0,0.0101069]
[1738795618442,0.30635531,96362.0,96361.0,0.0101069]
[1738795624258,0.40885896,96362.0,96361.0,0.0101069]
[1738795625966,0.30635531,96362.0,96361.0,0.0101069]
[1738795626583,0.15635531,96362.0,96361.0,0.0101069]
[1738795628404,0.00069231,96362.0,96361.0,0.0101069]
[1738795628611,0.00069231,96362.0,96361.0,0.04118784]
[1738795629804,0.4054,96387.0,96361.0,0.04118784]
[1738795630005,0.10250365,96382.0,96361.0,0.0413281]
[1738795630212,0.10250365,96382.0,96373.0,0.01]